[Event "DMP Ekstraliga 2020"]
[Site "Krakow"]
[Date "2020.08.30"]
[Round "5.21"]
[White "Warakomski, Tomasz"]
[Black "Nurkiewicz, Maciej"]
[Result "1/2-1/2"]
[ECO "B90"]
[WhiteElo "2515"]
[BlackElo "2326"]
[Annotator "ChessBase"]
[PlyCount "117"]
[EventDate "2020.08.26"]
[EventType "team-tourn"]
[EventCountry "POL"]
[SourceTitle "playchess.com"]
[Source "ChessBase"]
[SourceQuality "1"]
[WhiteTeam "Hetman Plock"]
[BlackTeam "Wrzos Miedzyborow"]
[TimeControl "30/5400+30:1800+30"]

1. e4 {[%emt 0:00:00]} c5 {[%emt 0:00:00]} 2. Nf3 {[%emt 0:00:00]} d6 {[%emt 0:00:00]} 3. d4 {[%emt 0:00:10]} cxd4 {[%emt 0:00:00]} 4. Nxd4 {[%emt 0:00:04]} Nf6 {[%emt 0:00:00]} 5. Nc3 {[%emt 0:00:04]} a6 {[%emt 0:00:00]} 6. Bd3 {[%emt 0:01:05]} e5 {[%emt 0:02:13]} 7. Nde2 {[%emt 0:00:05]} Be7 {[%emt 0:02:24]} 8. O-O {[%emt 0:00:08]} O-O {[%emt 0:00:12]} 9. a4 {[%emt 0:01:55]} b6 {[%emt 0:14:53]} 10. f4 {[%emt 0:00:20]} Nbd7 {[%emt 0:03:41]} 11. Ng3 {[%emt 0:08:08]} Nc5 {[%emt 0:07:41]} 12. Bc4 {[%emt 0:09:21]} Bb7 {[%emt 0:04:43]} 13. Qe2 {[%emt 0:00:10]} b5 {[%emt 0:21:10]} 14. axb5 {[%emt 0:00:06]} axb5 {[%emt 0:00:08]} 15. Rxa8 {[%emt 0:00:04]} Bxa8 {[%emt 0:06:18]} 16. Nxb5 {[%emt 0:22:01]} Ncxe4 {[%emt 0:01:26]} 17. Nxe4 {[%emt 0:00:05]} Nxe4 {[%emt 0:01:24]} 18. fxe5 {[%emt 0:00:05]} dxe5 {[%emt 0:00:36]} 19. Be3 {[%emt 0:00:05]} Bg5 {[%emt 0:04:01]} 20. Bxg5 {[%emt 0:02:56]} Qxg5 {[%emt 0:00:21]} 21. Nc7 {[%emt 0:00:50]} Nf6 {[%emt 0:08:41]} 22. Nxa8 {[%emt 0:03:02]} Rxa8 {[%emt 0:00:02]} 23. Qd3 {[%emt 0:09:08]} e4 {[%emt 0:01:38]} 24. Qd4 {[%emt 0:00:03]} Re8 {[%emt 0:04:36]} 25. Be2 {[%emt 0:04:18]} h5 {[%emt 0:02:54]} 26. h3 {[%emt 0:04:20]} Nd5 {[%emt 0:05:39]} 27. Qf2 {[%emt 0:07:27]} Re7 {[%emt 0:00:16]} 28. c4 {[%emt 0:07:38]} Ne3 {[%emt 0:01:14]} 29. h4 {[%emt 0:00:09]} Qh6 {[%emt 0:01:48]} 30. Ra1 {[%emt 0:00:05]} f5 {[%emt 0:02:50]} 31. c5 {[%emt 0:41:33]} f4 {[%emt 0:30:27]} 32. Ra6 {[%emt 0:00:05]} g6 {[%emt 0:01:43]} 33. Rf6 {[%emt 0:00:42]} Nf5 {[%emt 0:00:15]} 34. Qe1 {[%emt 0:01:41]} f3 {[%emt 0:01:13]} 35. Bc4+ {[%emt 0:00:06]} Kg7 {[%emt 0:01:39]} 36. Re6 {[%emt 0:02:19]} Qf4 {[%emt 0:00:48]} 37. Rxe7+ {[%emt 0:02:12]} Nxe7 {[%emt 0:00:03]} 38. gxf3 {[%emt 0:00:05]} e3 {[%emt 0:01:12]} 39. Bd3 {[%emt 0:03:31]} Nd5 {[%emt 0:00:40]} 40. Be4 {[%emt 0:00:00]} Nf6 {[%emt 0:00:00]} 41. c6 {[%emt 0:00:00]} Nxe4 {[%emt 0:00:00]} 42. fxe4 {[%emt 0:00:00]} Qg4+ {[%emt 0:00:00]} 43. Kf1 {[%emt 0:00:00]} Qf3+ {[%emt 0:00:00]} 44. Kg1 {[%emt 0:00:00]} Qg4+ {[%emt 0:00:00]} 45. Kh2 {[%emt 0:00:00]} Qxe4 {[%emt 0:00:00]} 46. c7 {[%emt 0:00:00]} Qc2+ {[%emt 0:00:00]} 47. Kg1 {[%emt 0:00:00]} Kh7 {[%emt 0:00:00]} 48. Qxe3 {[%emt 0:00:00]} Qxc7 {[%emt 0:00:00]} 49. b4 {[%emt 0:00:00]} Qd7 {[%emt 0:00:00]} 50. Qe4 {[%emt 0:00:00]} Qd1+ {[%emt 0:00:00]} 51. Kf2 {[%emt 0:00:00]} Qd2+ {[%emt 0:00:00]} 52. Kf3 {[%emt 0:00:00]} Qc3+ {[%emt 0:00:00]} 53. Kf4 {[%emt 0:00:00]} Qf6+ {[%emt 0:00:00]} 54. Ke3 {[%emt 0:00:00]} Qc3+ {[%emt 0:00:00]} 55. Ke2 {[%emt 0:00:00]} Qb2+ {[%emt 0:00:00]} 56. Kd1 {[%emt 0:00:00]} Qb3+ {[%emt 0:00:00]} 57. Ke2 {[%emt 0:00:00]} Qb2+ {[%emt 0:00:00]} 58. Kf1 {[%emt 0:00:00]} Qc1+ {[%emt 0:00:00]} 59. Ke2 {[%emt 0:00:10]} 1/2-1/2

[Event "DMP Ekstraliga 2020"]
[Site "Krakow"]
[Date "2020.08.30"]
[Round "5.23"]
[White "Sabuk, Piotr"]
[Black "Sliwerski, Radoslaw"]
[Result "1-0"]
[ECO "E04"]
[WhiteElo "2377"]
[BlackElo "2042"]
[Annotator "ChessBase"]
[PlyCount "67"]
[EventDate "2020.08.26"]
[EventType "team-tourn"]
[EventCountry "POL"]
[SourceTitle "playchess.com"]
[Source "ChessBase"]
[SourceQuality "1"]
[WhiteTeam "Hetman Plock"]
[BlackTeam "Wrzos Miedzyborow"]
[TimeControl "30/5400+30:1800+30"]

1. d4 {[%emt 0:00:41]} Nf6 {[%emt 0:00:00]} 2. c4 {[%emt 0:00:16]} e6 {[%emt 0:00:00]} 3. g3 {[%emt 0:00:09]} d5 {[%emt 0:00:00]} 4. Nf3 {[%emt 0:00:12]} dxc4 {[%emt 0:00:00]} 5. Bg2 {[%emt 0:00:17]} c5 {[%emt 0:00:00]} 6. O-O {[%emt 0:02:33]} Nc6 {[%emt 0:00:12]} 7. dxc5 {[%emt 0:01:46]} Qxd1 {[%emt 0:01:11]} 8. Rxd1 {[%emt 0:00:20]} Bxc5 {[%emt 0:00:09]} 9. Nbd2 {[%emt 0:02:23]} c3 {[%emt 0:01:23]} 10. bxc3 {[%emt 0:00:06]} O-O {[%emt 0:00:19]} 11. Ne1 {[%emt 0:02:22]} Rd8 {[%emt 0:07:11]} 12. Nd3 {[%emt 0:01:18]} Be7 {[%emt 0:00:41]} 13. Rb1 {[%emt 0:15:27]} Nd5 {[%emt 0:07:53]} 14. Bb2 {[%emt 0:03:47]} f5 {[%emt 0:07:12]} 15. Nb3 {[%emt 0:12:36]} Bf6 {[%emt 0:17:27]} 16. c4 {[%emt 0:04:49]} Nde7 {[%emt 0:14:58]} 17. Ba3 {[%emt 0:11:08]} Kf7 {[%emt 0:06:41]} 18. Bxe7 {[%emt 0:06:33]} Kxe7 {[%emt 0:08:11]} 19. Bxc6 {[%emt 0:04:14]} bxc6 {[%emt 0:00:53]} 20. Na5 {[%emt 0:00:19]} Kd6 {[%emt 0:04:39]} 21. Nb7+ {[%emt 0:03:42]} Bxb7 {[%emt 0:00:39]} 22. Rxb7 {[%emt 0:00:01]} Re8 {[%emt 0:03:14]} 23. c5+ {[%emt 0:09:13]} Kd5 {[%emt 0:00:01]} 24. Nb4+ {[%emt 0:02:41]} Kxc5 {[%emt 0:06:08]} 25. Na6+ {[%emt 0:08:21]} Kc4 {[%emt 0:00:29]} 26. Rb4+ {[%emt 0:00:30]} Kc3 {[%emt 0:00:07]} 27. Rd3+ {[%emt 0:00:15]} Kc2 {[%emt 0:00:03]} 28. Rc4+ {[%emt 0:00:24]} Kb2 {[%emt 0:00:10]} 29. Rb3+ {[%emt 0:02:01]} Ka1 {[%emt 0:04:03]} 30. Nb4 {[%emt 0:01:46]} Bb2 {[%emt 0:00:22]} 31. Rc2 {[%emt 0:31:35]} a5 {[%emt 0:31:16]} 32. Nd3 {[%emt 0:00:46]} Bf6 {[%emt 0:01:33]} 33. Rc1+ {[%emt 0:00:45]} Kxa2 {[%emt 0:00:08]} 34. Rcb1 {[%emt 0:00:08]} 1-0

[Event "DMP Ekstraliga 2020"]
[Site "Krakow"]
[Date "2020.08.30"]
[Round "5.24"]
[White "Kulon, Klaudia"]
[Black "Bulmaga, Irina"]
[Result "1/2-1/2"]
[ECO "A45"]
[WhiteElo "2336"]
[BlackElo "2434"]
[Annotator "ChessBase"]
[PlyCount "91"]
[EventDate "2020.08.26"]
[EventType "team-tourn"]
[EventCountry "POL"]
[SourceTitle "playchess.com"]
[Source "ChessBase"]
[SourceQuality "1"]
[WhiteTeam "Wrzos Miedzyborow"]
[BlackTeam "Hetman Plock"]
[TimeControl "30/5400+30:1800+30"]

1. d4 {[%emt 0:00:00]} Nf6 {[%emt 0:00:00]} 2. Bg5 {[%emt 0:00:00]} d5 {[%emt 0:00:00]} 3. Bxf6 {[%emt 0:00:00]} exf6 {[%emt 0:00:00]} 4. e3 {[%emt 0:00:00]} g6 {[%emt 0:00:31]} 5. g3 {[%emt 0:02:22]} c6 {[%emt 0:00:47]} 6. Bg2 {[%emt 0:00:06]} h5 {[%emt 0:00:08]} 7. Nf3 {[%emt 0:07:49]} Be6 {[%emt 0:09:33]} 8. O-O {[%emt 0:03:16]} Nd7 {[%emt 0:02:53]} 9. Nbd2 {[%emt 0:00:57]} Be7 {[%emt 0:08:57]} 10. Qe2 {[%emt 0:04:09]} f5 {[%emt 0:06:25]} 11. c4 {[%emt 0:02:57]} h4 {[%emt 0:01:45]} 12. b3 {[%emt 0:08:53]} Kf8 {[%emt 0:03:57]} 13. Ne1 {[%emt 0:02:35]} Bd6 {[%emt 0:08:17]} 14. Nd3 {[%emt 0:06:29]} Qf6 {[%emt 0:00:27]} 15. cxd5 {[%emt 0:02:43]} cxd5 {[%emt 0:02:38]} 16. Nf4 {[%emt 0:04:34]} Bxf4 {[%emt 0:05:52]} 17. exf4 {[%emt 0:00:36]} hxg3 {[%emt 0:00:18]} 18. hxg3 {[%emt 0:00:06]} g5 {[%emt 0:04:26]} 19. fxg5 {[%emt 0:03:30]} Qxg5 {[%emt 0:00:57]} 20. Nf3 {[%emt 0:00:26]} Qg4 {[%emt 0:05:42]} 21. Qe3 {[%emt 0:01:02]} f4 {[%emt 0:06:14]} 22. Qxf4 {[%emt 0:01:37]} Qxf4 {[%emt 0:00:06]} 23. gxf4 {[%emt 0:00:02]} Ke7 {[%emt 0:04:15]} 24. Rfe1 {[%emt 0:02:17]} Kf6 {[%emt 0:01:14]} 25. Rac1 {[%emt 0:02:35]} Rac8 {[%emt 0:04:30]} 26. Ng5 {[%emt 0:06:04]} Rc6 {[%emt 0:00:39]} 27. Bf1 {[%emt 0:01:18]} Rhc8 {[%emt 0:02:42]} 28. Rxc6 {[%emt 0:00:45]} Rxc6 {[%emt 0:01:08]} 29. Bb5 {[%emt 0:00:41]} Rc7 {[%emt 0:00:42]} 30. Kg2 {[%emt 0:01:18]} Nb8 {[%emt 0:10:54]} 31. Bd3 {[%emt 0:33:46]} Nc6 {[%emt 0:34:49]} 32. Nh7+ {[%emt 0:03:27]} Kg7 {[%emt 0:00:01]} 33. f5 {[%emt 0:00:07]} Kxh7 {[%emt 0:00:06]} 34. fxe6+ {[%emt 0:00:13]} Kg7 {[%emt 0:00:06]} 35. exf7 {[%emt 0:02:21]} Rxf7 {[%emt 0:02:19]} 36. Re6 {[%emt 0:01:14]} Rf6 {[%emt 0:00:12]} 37. Re8 {[%emt 0:01:02]} Rd6 {[%emt 0:03:06]} 38. Bb5 {[%emt 0:01:49]} Nxd4 {[%emt 0:01:15]} 39. Re7+ {[%emt 0:00:06]} Kf6 {[%emt 0:00:12]} 40. Rxb7 {[%emt 0:00:00]} Nxb5 {[%emt 0:00:00]} 41. Rxb5 {[%emt 0:00:00]} Ke5 {[%emt 0:00:00]} 42. Kf1 {[%emt 0:00:00]} Kd4 {[%emt 0:00:00]} 43. Ke2 {[%emt 0:00:00]} Re6+ {[%emt 0:00:00]} 44. Kd2 {[%emt 0:00:00]} Rf6 {[%emt 0:00:00]} 45. Ke2 {[%emt 0:00:00]} Re6+ {[%emt 0:00:00]} 46. Kd2 {[%emt 0:00:00]} 1/2-1/2

[Event "DMP Ekstraliga 2020"]
[Site "Krakow"]
[Date "2020.08.30"]
[Round "5.26"]
[White "Gajewski, Grzegorz"]
[Black "Teclaf, Pawel"]
[Result "1/2-1/2"]
[ECO "D85"]
[WhiteElo "2616"]
[BlackElo "2454"]
[Annotator "ChessBase"]
[PlyCount "67"]
[EventDate "2020.08.26"]
[EventType "team-tourn"]
[EventCountry "POL"]
[SourceTitle "playchess.com"]
[Source "ChessBase"]
[SourceQuality "1"]
[WhiteTeam "HETMAN Katowice"]
[BlackTeam "UKS 21 Podlesie"]
[TimeControl "30/5400+30:1800+30"]

1. d4 {[%emt 0:00:10]} Nf6 {[%emt 0:00:00]} 2. c4 {[%emt 0:00:07]} g6 {[%emt 0:00:00]} 3. Nc3 {[%emt 0:00:06]} d5 {[%emt 0:00:00]} 4. cxd5 {[%emt 0:00:29]} Nxd5 {[%emt 0:00:00]} 5. e4 {[%emt 0:00:05]} Nxc3 {[%emt 0:00:03]} 6. bxc3 {[%emt 0:00:03]} Bg7 {[%emt 0:00:07]} 7. Nf3 {[%emt 0:00:55]} c5 {[%emt 0:01:34]} 8. Rb1 {[%emt 0:01:59]} O-O {[%emt 0:03:44]} 9. Be2 {[%emt 0:00:05]} b6 {[%emt 0:09:09]} 10. O-O {[%emt 0:00:57]} Bb7 {[%emt 0:01:19]} 11. d5 {[%emt 0:02:02]} Bxc3 {[%emt 0:06:48]} 12. h4 {[%emt 0:00:57]} Qd6 {[%emt 0:10:38]} 13. Rb3 {[%emt 0:16:19]} Bf6 {[%emt 0:17:20]} 14. e5 {[%emt 0:24:21]} Bxe5 {[%emt 0:03:12]} 15. Nxe5 {[%emt 0:00:13]} Qxe5 {[%emt 0:00:04]} 16. Bf3 {[%emt 0:00:05]} Qd4 {[%emt 0:23:57]} 17. Qe2 {[%emt 0:08:02]} Qxh4 {[%emt 0:06:57]} 18. Bb2 {[%emt 0:04:52]} Nd7 {[%emt 0:01:03]} 19. Re3 {[%emt 0:00:05]} Rfe8 {[%emt 0:03:21]} 20. Re1 {[%emt 0:00:32]} Rad8 {[%emt 0:02:07]} 21. Qd2 {[%emt 0:10:35]} Nf6 {[%emt 0:03:20]} 22. g3 {[%emt 0:04:03]} Qg5 {[%emt 0:01:10]} 23. Qc3 {[%emt 0:00:38]} Rd7 {[%emt 0:02:14]} 24. Re5 {[%emt 0:17:36]} Qh6 {[%emt 0:00:01]} 25. Kg2 {[%emt 0:00:28]} Kf8 {[%emt 0:01:44]} 26. Rxe7 {[%emt 0:02:06]} Rexe7 {[%emt 0:00:05]} 27. Rxe7 {[%emt 0:00:53]} Rxe7 {[%emt 0:00:26]} 28. Qxf6 {[%emt 0:00:02]} Ke8 {[%emt 0:00:31]} 29. Qd6 {[%emt 0:01:58]} f5 {[%emt 0:02:12]} 30. Bf6 {[%emt 0:01:04]} Qf8 {[%emt 0:00:31]} 31. Bg5 {[%emt 0:32:14]} Kf7 {[%emt 0:30:44]} 32. Qf6+ {[%emt 0:00:14]} Ke8 {[%emt 0:00:01]} 33. Qd6 {[%emt 0:00:01]} Kf7 {[%emt 0:00:01]} 34. Qf6+ {[%emt 0:01:39]} 1/2-1/2

[Event "DMP Ekstraliga 2020"]
[Site "Krakow"]
[Date "2020.08.30"]
[Round "5.27"]
[White "Barski, Radoslaw"]
[Black "Socko, Bartosz"]
[Result "1/2-1/2"]
[ECO "D20"]
[WhiteElo "2444"]
[BlackElo "2601"]
[Annotator "ChessBase"]
[PlyCount "65"]
[EventDate "2020.08.26"]
[EventType "team-tourn"]
[EventCountry "POL"]
[SourceTitle "playchess.com"]
[Source "ChessBase"]
[SourceQuality "1"]
[WhiteTeam "UKS 21 Podlesie"]
[BlackTeam "HETMAN Katowice"]
[TimeControl "30/5400+30:1800+30"]

1. d4 {[%emt 0:00:00]} d5 {[%emt 0:00:00]} 2. c4 {[%emt 0:00:13]} dxc4 {[%emt 0:00:00]} 3. e4 {[%emt 0:04:24]} Nf6 {[%emt 0:00:03]} 4. e5 {[%emt 0:00:20]} Nd5 {[%emt 0:00:07]} 5. Bxc4 {[%emt 0:00:07]} Bf5 {[%emt 0:00:05]} 6. Nc3 {[%emt 0:06:19]} Nxc3 {[%emt 0:00:09]} 7. bxc3 {[%emt 0:00:06]} e6 {[%emt 0:00:13]} 8. Qf3 {[%emt 0:04:50]} c6 {[%emt 0:07:05]} 9. Ne2 {[%emt 0:01:04]} Be7 {[%emt 0:00:08]} 10. O-O {[%emt 0:06:16]} Nd7 {[%emt 0:04:37]} 11. Bb3 {[%emt 0:06:49]} Qc7 {[%emt 0:04:44]} 12. Ng3 {[%emt 0:01:17]} Bg6 {[%emt 0:00:08]} 13. Qe2 {[%emt 0:00:41]} Bh4 {[%emt 0:28:23]} 14. Ba3 {[%emt 0:05:17]} Bxg3 {[%emt 0:04:21]} 15. hxg3 {[%emt 0:00:39]} c5 {[%emt 0:05:34]} 16. d5 {[%emt 0:07:39]} O-O-O {[%emt 0:07:15]} 17. f4 {[%emt 0:15:22]} c4 {[%emt 0:03:43]} 18. Qxc4 {[%emt 0:13:23]} Qxc4 {[%emt 0:00:33]} 19. Bxc4 {[%emt 0:00:04]} Nb6 {[%emt 0:00:56]} 20. Be2 {[%emt 0:00:07]} Nxd5 {[%emt 0:01:36]} 21. Kf2 {[%emt 0:04:02]} Be4 {[%emt 0:01:56]} 22. Rfc1 {[%emt 0:01:47]} f5 {[%emt 0:06:36]} 23. c4 {[%emt 0:01:36]} Nc7 {[%emt 0:01:33]} 24. Bd6 {[%emt 0:00:39]} Rd7 {[%emt 0:00:09]} 25. a4 {[%emt 0:04:03]} g5 {[%emt 0:01:12]} 26. fxg5 {[%emt 0:10:27]} Rg8 {[%emt 0:00:40]} 27. Rh1 {[%emt 0:01:35]} Rxg5 {[%emt 0:00:08]} 28. Rh6 {[%emt 0:00:22]} Rdg7 {[%emt 0:00:55]} 29. Ra3 {[%emt 0:00:06]} Kd7 {[%emt 0:05:51]} 30. Bxc7 {[%emt 0:03:28]} Kxc7 {[%emt 0:00:15]} 31. Rxe6 {[%emt 0:30:03]} R5g6 {[%emt 0:36:00]} 32. Rxg6 {[%emt 0:00:27]} hxg6 {[%emt 0:00:16]} 33. Ke3 {[%emt 0:02:08]} 1/2-1/2

[Event "DMP Ekstraliga 2020"]
[Site "Krakow"]
[Date "2020.08.30"]
[Round "5.28"]
[White "Miton, Kamil"]
[Black "Kosakowski, Jakub"]
[Result "0-1"]
[ECO "E62"]
[WhiteElo "2590"]
[BlackElo "2418"]
[Annotator "ChessBase"]
[PlyCount "78"]
[EventDate "2020.08.26"]
[EventType "team-tourn"]
[EventCountry "POL"]
[SourceTitle "playchess.com"]
[Source "ChessBase"]
[SourceQuality "1"]
[WhiteTeam "HETMAN Katowice"]
[BlackTeam "UKS 21 Podlesie"]
[TimeControl "30/5400+30:1800+30"]

1. c4 {[%emt 0:00:02]} Nf6 {[%emt 0:00:08]} 2. g3 {[%emt 0:00:42]} g6 {[%emt 0:00:29]} 3. Bg2 {[%emt 0:00:35]} Bg7 {[%emt 0:00:11]} 4. d4 {[%emt 0:02:05]} O-O {[%emt 0:00:41]} 5. Nc3 {[%emt 0:01:22]} d6 {[%emt 0:00:24]} 6. Nf3 {[%emt 0:00:37]} Nc6 {[%emt 0:00:14]} 7. O-O {[%emt 0:00:20]} Rb8 {[%emt 0:00:13]} 8. h3 {[%emt 0:01:42]} a6 {[%emt 0:00:44]} 9. e4 {[%emt 0:01:19]} b5 {[%emt 0:01:45]} 10. cxb5 {[%emt 0:00:45]} axb5 {[%emt 0:00:13]} 11. Re1 {[%emt 0:00:26]} Nd7 {[%emt 0:11:02]} 12. Bg5 {[%emt 0:02:30]} h6 {[%emt 0:04:52]} 13. Be3 {[%emt 0:01:36]} b4 {[%emt 0:23:07]} 14. Na4 {[%emt 0:02:53]} Bb7 {[%emt 0:01:22]} 15. Rc1 {[%emt 0:05:24]} e6 {[%emt 0:03:05]} 16. Qc2 {[%emt 0:09:19]} Ne7 {[%emt 0:09:20]} 17. Nd2 {[%emt 0:21:34]} Bc6 {[%emt 0:02:58]} 18. b3 {[%emt 0:00:50]} Rb7 {[%emt 0:07:26]} 19. Nc4 {[%emt 0:09:30]} Qa8 {[%emt 0:01:28]} 20. Ncb2 {[%emt 0:00:39]} Rbb8 {[%emt 0:01:26]} 21. Qd2 {[%emt 0:06:11]} Kh7 {[%emt 0:04:17]} 22. Nd3 {[%emt 0:05:03]} Rfc8 {[%emt 0:03:33]} 23. Rxc6 {[%emt 0:07:09]} Qxc6 {[%emt 0:02:03]} 24. Nxb4 {[%emt 0:00:28]} Qb5 {[%emt 0:00:52]} 25. Nc2 {[%emt 0:05:30]} Nb6 {[%emt 0:01:52]} 26. Bf1 {[%emt 0:00:51]} Qd7 {[%emt 0:00:36]} 27. Nc3 {[%emt 0:01:42]} c5 {[%emt 0:05:08]} 28. Ba6 {[%emt 0:06:32]} cxd4 {[%emt 0:02:20]} 29. Nxd4 {[%emt 0:01:50]} Rd8 {[%emt 0:00:27]} 30. Bb5 {[%emt 0:00:41]} Qc8 {[%emt 0:00:22]} 31. a4 {[%emt 0:34:17]} d5 {[%emt 0:34:41]} 32. e5 {[%emt 0:00:04]} Bxe5 {[%emt 0:00:32]} 33. Rc1 {[%emt 0:00:51]} Qb7 {[%emt 0:02:54]} 34. a5 {[%emt 0:00:23]} Nbc8 {[%emt 0:00:06]} 35. a6 {[%emt 0:00:28]} Qa8 {[%emt 0:00:07]} 36. Nce2 {[%emt 0:01:04]} Na7 {[%emt 0:01:56]} 37. Ba4 {[%emt 0:00:38]} Rbc8 {[%emt 0:02:38]} 38. Rxc8 {[%emt 0:00:32]} Qxc8 {[%emt 0:00:13]} 39. Qa5 {[%emt 0:00:32]} Rd6 {[%emt 0:00:38]} 0-1

[Event "DMP Ekstraliga 2020"]
[Site "Krakow"]
[Date "2020.08.30"]
[Round "5.29"]
[White "Dzierzak, Radoslaw"]
[Black "Sadzikowski, Daniel"]
[Result "0-1"]
[ECO "C91"]
[WhiteElo "2276"]
[BlackElo "2522"]
[Annotator "ChessBase"]
[PlyCount "66"]
[EventDate "2020.08.26"]
[EventType "team-tourn"]
[EventCountry "POL"]
[SourceTitle "playchess.com"]
[Source "ChessBase"]
[SourceQuality "1"]
[WhiteTeam "UKS 21 Podlesie"]
[BlackTeam "HETMAN Katowice"]
[WhiteTeamCountry "POL"]
[TimeControl "30/5400+30:1800+30"]

1. e4 e5 {[%emt 0:00:07]} 2. Nf3 {[%emt 0:00:24]} Nc6 {[%emt 0:00:05]} 3. Bb5 {[%emt 0:00:34]} a6 {[%emt 0:00:05]} 4. Ba4 {[%emt 0:00:04]} Nf6 {[%emt 0:00:06]} 5. O-O {[%emt 0:00:07]} Be7 {[%emt 0:00:19]} 6. Re1 {[%emt 0:00:13]} b5 {[%emt 0:00:05]} 7. Bb3 {[%emt 0:00:04]} d6 {[%emt 0:00:04]} 8. c3 {[%emt 0:00:05]} O-O {[%emt 0:00:06]} 9. d4 {[%emt 0:00:09]} Bg4 {[%emt 0:00:05]} 10. d5 {[%emt 0:00:09]} Na5 {[%emt 0:00:07]} 11. Bc2 {[%emt 0:00:06]} Qc8 {[%emt 0:00:17]} 12. h3 {[%emt 0:00:11]} Bd7 {[%emt 0:00:15]} 13. Nbd2 {[%emt 0:00:19]} c6 {[%emt 0:00:09]} 14. dxc6 {[%emt 0:00:07]} Qxc6 {[%emt 0:00:02]} 15. Nf1 {[%emt 0:00:16]} Rfc8 {[%emt 0:00:12]} 16. Ng3 {[%emt 0:03:04]} Rab8 {[%emt 0:00:49]} 17. a3 {[%emt 0:14:27]} g6 {[%emt 0:00:25]} 18. Nh2 {[%emt 0:03:34]} Nc4 {[%emt 0:10:21]} 19. Ng4 {[%emt 0:19:22]} Nxg4 {[%emt 0:04:47]} 20. hxg4 {[%emt 0:00:37]} a5 {[%emt 0:02:54]} 21. b3 {[%emt 0:04:47]} Nb6 {[%emt 0:01:12]} 22. Re3 {[%emt 0:00:11]} d5 {[%emt 0:08:43]} 23. Rd3 {[%emt 0:08:42]} d4 {[%emt 0:07:08]} 24. Bb2 {[%emt 0:05:48]} a4 {[%emt 0:13:02]} 25. Bb1 {[%emt 0:01:53]} Nc4 {[%emt 0:09:12]} 26. bxc4 {[%emt 0:03:49]} bxc4 {[%emt 0:00:40]} 27. Rd2 {[%emt 0:02:41]} Bg5 28. Re2 d3 {[%emt 0:03:51]} 29. Bxd3 {[%emt 0:01:04]} Bxg4 {[%emt 0:04:21]} 30. f3 {[%emt 0:05:28]} cxd3 {[%emt 0:06:45]} 31. Qxd3 {[%emt 0:31:50]} Be6 {[%emt 0:30:04]} 32. Bc1 {[%emt 0:08:30]} Bc4 {[%emt 0:01:39]} 33. Qc2 {[%emt 0:01:52]} Bh4 {[%emt 0:01:13]} 0-1

[Event "DMP Ekstraliga 2020"]
[Site "Krakow"]
[Date "2020.08.30"]
[Round "5.30"]
[White "Socko, Monika"]
[Black "Sliwicka, Alicja"]
[Result "1-0"]
[ECO "D94"]
[WhiteElo "2428"]
[BlackElo "2317"]
[Annotator "ChessBase"]
[PlyCount "127"]
[EventDate "2020.08.26"]
[EventType "team-tourn"]
[EventCountry "POL"]
[SourceTitle "playchess.com"]
[Source "ChessBase"]
[SourceQuality "1"]
[WhiteTeam "HETMAN Katowice"]
[BlackTeam "UKS 21 Podlesie"]
[TimeControl "30/5400+30:1800+30"]

1. c4 {[%emt 0:00:00]} Nf6 {[%emt 0:07:10]} 2. Nc3 {[%emt 0:00:00]} d5 {[%emt 0:00:57]} 3. d4 {[%emt 0:06:12]} g6 {[%emt 0:03:21]} 4. Nf3 {[%emt 0:01:32]} Bg7 {[%emt 0:00:15]} 5. e3 {[%emt 0:03:32]} O-O {[%emt 0:01:52]} 6. b4 {[%emt 0:00:04]} b6 {[%emt 0:05:40]} 7. Bb2 {[%emt 0:04:05]} c5 {[%emt 0:06:44]} 8. b5 {[%emt 0:14:29]} cxd4 {[%emt 0:06:40]} 9. exd4 {[%emt 0:00:21]} Bb7 {[%emt 0:07:07]} 10. Qb3 {[%emt 0:04:07]} dxc4 {[%emt 0:01:44]} 11. Bxc4 {[%emt 0:00:05]} Bxf3 {[%emt 0:02:32]} 12. gxf3 {[%emt 0:00:04]} Bh6 {[%emt 0:04:34]} 13. Ne4 {[%emt 0:12:35]} Nbd7 {[%emt 0:01:09]} 14. O-O {[%emt 0:06:09]} Nh5 {[%emt 0:07:54]} 15. Rad1 {[%emt 0:04:15]} Rc8 {[%emt 0:02:28]} 16. Kh1 {[%emt 0:04:48]} Qc7 {[%emt 0:03:47]} 17. Bd5 {[%emt 0:00:18]} Ndf6 {[%emt 0:03:11]} 18. Bc6 {[%emt 0:01:04]} Bf4 {[%emt 0:03:30]} 19. Ng3 {[%emt 0:05:05]} Rcd8 {[%emt 0:00:38]} 20. Rfe1 {[%emt 0:05:00]} Bd6 {[%emt 0:03:01]} 21. d5 {[%emt 0:01:34]} Qc8 {[%emt 0:01:40]} 22. Qc4 {[%emt 0:03:01]} Qh3 {[%emt 0:02:43]} 23. Qf1 {[%emt 0:01:53]} Qc8 {[%emt 0:05:30]} 24. Rd4 {[%emt 0:00:56]} Bc5 {[%emt 0:04:25]} 25. Qc4 {[%emt 0:09:13]} Ng7 {[%emt 0:04:16]} 26. Rh4 {[%emt 0:02:50]} Nf5 {[%emt 0:01:04]} 27. Rf4 {[%emt 0:00:32]} Nxg3+ {[%emt 0:02:20]} 28. fxg3 {[%emt 0:00:07]} Nh5 {[%emt 0:00:19]} 29. Qc3 {[%emt 0:02:13]} f6 {[%emt 0:00:37]} 30. Rh4 {[%emt 0:00:19]} Ng7 {[%emt 0:00:25]} 31. Kg2 {[%emt 0:31:42]} Rf7 {[%emt 0:32:03]} 32. Rc4 {[%emt 0:00:26]} Bd6 {[%emt 0:02:20]} 33. Be8 {[%emt 0:02:30]} Qb8 {[%emt 0:00:06]} 34. Bxf7+ {[%emt 0:00:03]} Kxf7 {[%emt 0:00:07]} 35. Qe3 {[%emt 0:00:27]} Qb7 {[%emt 0:01:20]} 36. Rc6 {[%emt 0:00:16]} h5 {[%emt 0:00:25]} 37. Ba3 {[%emt 0:01:56]} Bxa3 {[%emt 0:00:51]} 38. Qxa3 {[%emt 0:00:01]} Rxd5 {[%emt 0:00:47]} 39. Qb3 {[%emt 0:00:24]} Qd7 {[%emt 0:01:31]} 40. Rd1 {[%emt 0:00:00]} e6 {[%emt 0:00:00]} 41. Rxd5 {[%emt 0:00:00]} exd5 {[%emt 0:00:00]} 42. Qb4 {[%emt 0:00:00]} Ne8 {[%emt 0:00:00]} 43. Qd4 {[%emt 0:00:00]} Qf5 {[%emt 0:00:00]} 44. a4 {[%emt 0:00:00]} g5 {[%emt 0:00:00]} 45. g4 {[%emt 0:00:00]} hxg4 {[%emt 0:00:00]} 46. Qxg4 {[%emt 0:00:00]} Qe5 {[%emt 0:00:00]} 47. Qd7+ {[%emt 0:00:00]} Kg6 {[%emt 0:00:00]} 48. Qe6 {[%emt 0:00:00]} Qb2+ {[%emt 0:00:00]} 49. Kh3 {[%emt 0:00:00]} Ng7 {[%emt 0:00:00]} 50. Qxd5 {[%emt 0:00:00]} Qa1 {[%emt 0:00:00]} 51. Qe4+ {[%emt 0:00:00]} Kh6 {[%emt 0:00:00]} 52. Kg2 {[%emt 0:02:52]} Nh5 {[%emt 0:00:22]} 53. h4 {[%emt 0:00:58]} Nf4+ {[%emt 0:00:57]} 54. Kh2 {[%emt 0:00:50]} Qa2+ {[%emt 0:01:38]} 55. Qc2 {[%emt 0:01:49]} Qa1 {[%emt 0:02:18]} 56. Rc7 {[%emt 0:02:40]} Ng6 {[%emt 0:00:15]} 57. hxg5+ {[%emt 0:00:11]} fxg5 {[%emt 0:01:25]} 58. Rc6 {[%emt 0:00:22]} Qe5+ {[%emt 0:00:18]} 59. Kg2 {[%emt 0:00:16]} Qe8 {[%emt 0:00:12]} 60. Qe4 {[%emt 0:00:23]} Qf7 {[%emt 0:00:15]} 61. Qe6 {[%emt 0:00:25]} Qxe6 {[%emt 0:01:18]} 62. Rxe6 {[%emt 0:00:03]} Kh5 {[%emt 0:00:34]} 63. Kg3 {[%emt 0:00:13]} Nh4 {[%emt 0:00:26]} 64. Rf6 {[%emt 0:00:09]} 1-0